fUST/lending_fUST_20250115
["ID","MTS","AMOUNT","RATE_DAILY","PERIOD"]
[348998553,1736927441213,-500.0,0.00019863,3]
[348998555,1736927441222,-500.0,0.00019863,3]
[348998557,1736927441231,-500.0,0.00019863,3]
[348998559,1736927441241,-500.0,0.00019863,3]
[348998561,1736927441251,-500.0,0.00019863,3]
[348998563,1736927441261,-500.0,0.00019863,3]
[348998565,1736927441271,-242.58,0.00019863,3]
[348998567,1736927441281,-622.59,0.00019863,3]
[348998569,1736927441291,-500.0,0.00019863,3]
[348998571,1736927441300,-500.0,0.00019863,3]
[348998573,1736927441310,-500.0,0.00019863,3]
[348998575,1736927441319,-500.0,0.00019863,3]
[348998577,1736927441331,-414.27,0.00019863,3]
[348998579,1736927441340,-500.0,0.00019863,3]
[348998580,1736927441350,-1041.04,0.00019863,3]
[348998582,1736927441359,-200.276568,0.00019921,2]
[348998584,1736927441368,-500.0,0.00019999,3]
[348998586,1736927441377,-500.0,0.00019999,3]
[348998588,1736927441386,-1668.78,0.00019999,2]
[348998590,1736927441396,-569.57,0.00019999,3]
[348998592,1736927441406,-151.0,0.0002,2]
[348998594,1736927441416,-1858.68,0.0002,3]
[348998596,1736927441425,-500.0,0.0002,3]
[348998598,1736927441435,-361.8,0.0002,3]
[348998600,1736927441444,-404.98,0.0002,3]
[348998602,1736927441454,-3527.35,0.0002,3]
[348998604,1736927441463,-500.0,0.0002,3]
[348998606,1736927441473,-1009.93,0.0002,3]
[348998608,1736927441483,-500.0,0.0002,3]
[348998610,1736927441492,-500.0,0.0002,3]
[348998612,1736927441502,-151.42,0.0002,3]
[348998614,1736927441511,-500.0,0.0002,3]
[348998616,1736927441521,-500.0,0.0002,3]
[348998618,1736927441531,-618.9,0.0002,3]
[348998620,1736927441541,-500.0,0.0002,3]
[348998622,1736927441550,-560.33,0.0002,3]
[348998624,1736927441560,-500.0,0.0002,3]
[348998626,1736927441570,-500.0,0.0002,3]
[348998628,1736927441580,-500.0,0.0002,3]
[348998630,1736927441589,-622.59,0.0002,3]
[348998632,1736927441599,-297.3,0.0002,3]
[348998634,1736927441608,-500.0,0.0002,3]
[348998636,1736927441618,-500.0,0.0002,3]
[348998638,1736927441627,-500.0,0.0002,3]
[348998640,1736927441636,-293.47,0.0002,3]
[348998641,1736927441645,-1041.04,0.0002,3]
[348998643,1736927441655,-151.0,0.00020136,2]
[348998645,1736927441664,-1858.68,0.00020136,3]
[348998647,1736927441674,-500.0,0.00020136,3]
[348998657,1736927441766,-3527.35,0.00020136,3]
[348998659,1736927441778,-583.42,0.00020136,3]
[348998661,1736927441788,-1009.93,0.00020136,3]
[348998664,1736927441800,-500.0,0.00020136,3]
[348998666,1736927441810,-500.0,0.00020136,3]
[348998668,1736927441820,-500.0,0.00020136,3]
[348998669,1736927441831,-251.13,0.00020136,3]
[348998671,1736927441841,-500.0,0.00020136,3]
[348998673,1736927441850,-500.0,0.00020136,3]
[348998675,1736927441860,-450.08,0.00020136,3]
[348998677,1736927441869,-456.5,0.00020136,3]
[348998679,1736927441879,-500.0,0.00020136,3]
[348998681,1736927441889,-500.0,0.00020136,3]
[348998683,1736927441899,-622.59,0.00020136,3]
[348998685,1736927441908,-500.0,0.00020136,3]
[348998687,1736927441918,-500.0,0.00020136,3]
[348998689,1736927441927,-1668.78,0.00020136,2]
[348998691,1736927441936,-500.0,0.00020136,3]
[348998693,1736927441946,-569.57,0.00020136,3]
[348998695,1736927441956,-1041.04,0.00020136,3]
[348998697,1736927441965,-500.0,0.00020164,2]
[348998699,1736927441974,-1858.68,0.00020273,3]
[348998700,1736927441984,-500.0,0.00020273,3]
[348998701,1736927441993,-151.0,0.00020273,2]
[348998702,1736927442003,-3527.35,0.00020273,3]
[348998703,1736927442013,-1009.93,0.00020273,3]
[348998704,1736927442022,-637.110306,0.00020273,2]
[348998705,1736927442031,-637.110306,0.00020273,2]
[348998706,1736927442040,-500.0,0.00020273,3]
[348998707,1736927442050,-282.15,0.00020273,3]
[348998708,1736927442059,-500.0,0.00020273,3]
[348998709,1736927442069,-500.0,0.00020273,3]
[348998710,1736927442081,-500.0,0.00020273,3]
[348998711,1736927442090,-500.0,0.00020273,3]
[348998712,1736927442100,-310.27,0.00020273,3]
[348998713,1736927442113,-622.59,0.00020273,3]
[348998714,1736927442123,-162.56,0.00020273,3]
[348998715,1736927442132,-500.0,0.00020273,3]
[348998716,1736927442143,-1668.78,0.00020273,2]
[348998717,1736927442152,-500.0,0.00020273,3]
[348998718,1736927442161,-569.57,0.00020273,3]
[348998720,1736927442171,-203.36095024,0.00020363,2]
[348998722,1736927442180,-500.0,0.00020378,2]
[348998724,1736927442191,-1858.68,0.0002041,3]
[348998726,1736927442202,-474.15,0.0002041,3]
[348998728,1736927442211,-151.0,0.0002041,2]
[348998729,1736927442221,-3527.35,0.0002041,3]
[348998731,1736927442230,-1009.93,0.0002041,3]
[348998734,1736927442241,-500.0,0.0002041,3]
[348998735,1736927442250,-500.0,0.0002041,3]
[348998737,1736927442260,-328.22,0.0002041,3]
[348998738,1736927442270,-500.0,0.0002041,3]
[348998740,1736927442280,-507.67,0.0002041,3]
[348998742,1736927442289,-622.59,0.0002041,3]
[348998744,1736927442299,-500.0,0.0002041,3]
[348998746,1736927442308,-1668.78,0.0002041,2]
[348998749,1736927442317,-500.0,0.0002041,3]
[348998750,1736927442328,-569.57,0.0002041,3]
[348998752,1736927442338,-199.931712,0.00020447,2]
[348998754,1736927442347,-1858.68,0.00020547,3]
[348998756,1736927442357,-3527.35,0.00020547,3]
[348998757,1736927442367,-1009.93,0.00020547,3]
[348998759,1736927442377,-500.0,0.00020547,3]
[348998760,1736927442386,-500.0,0.00020547,3]
[348998761,1736927442395,-500.0,0.00020547,3]
[348998763,1736927442405,-622.59,0.00020547,3]
[348998765,1736927442415,-500.0,0.00020547,3]
[348998767,1736927442424,-1668.78,0.00020547,2]
[348998769,1736927442434,-500.0,0.00020547,3]
[348998771,1736927442443,-569.57,0.00020547,3]
[348998773,1736927442453,-151.0,0.00020684,2]
[348998775,1736927442462,-1858.68,0.00020684,3]
[348998777,1736927442472,-3527.35,0.00020684,3]
[348998779,1736927442482,-1009.93,0.00020684,3]
[348998781,1736927442491,-500.0,0.00020684,3]
[348998783,1736927442500,-500.0,0.00020684,3]
[348998785,1736927442510,-151.0,0.00020684,2]
[348998787,1736927442519,-500.0,0.00020684,3]
[348998790,1736927442529,-159.783995,0.00020684,2]
[348998792,1736927442538,-151.0,0.00020684,2]
[348998794,1736927442547,-622.59,0.00020684,3]
[348998796,1736927442556,-151.0,0.00020684,2]
[348998799,1736927442566,-151.0,0.00020684,2]
[348998801,1736927442577,-151.0,0.00020684,2]
[348998803,1736927442587,-151.0,0.00020684,2]
[348998805,1736927442597,-500.0,0.00020684,3]
[348998807,1736927442607,-151.0,0.00020684,2]
[348998808,1736927442616,-1668.78,0.00020684,2]
[348998810,1736927442626,-500.0,0.00020684,3]
[348998812,1736927442636,-569.57,0.00020684,3]
[348998814,1736927442646,-1858.68,0.00020821,3]
[348998816,1736927442656,-3527.35,0.00020821,3]
[348998818,1736927442665,-1009.93,0.00020821,3]
[348998820,1736927442675,-151.0,0.00020821,2]
[348998822,1736927442684,-500.0,0.00020821,3]
[348998824,1736927442694,-151.0,0.00020821,2]
[348998826,1736927442703,-500.0,0.00020821,3]
[348998828,1736927442713,-151.0,0.00020821,2]
[348998830,1736927442722,-151.0,0.00020821,2]
[348998831,1736927442731,-500.0,0.00020821,3]
[348998833,1736927442741,-622.59,0.00020821,3]
[348998836,1736927442751,-500.0,0.00020821,3]
[348998837,1736927442760,-1668.78,0.00020821,2]
[348998839,1736927442770,-500.0,0.00020821,3]
[348998841,1736927442779,-569.57,0.00020821,3]
[348998843,1736927442789,-420.0,0.00020899,2]
[348998845,1736927442799,-200.16964394,0.000209,2]
[348998847,1736927442809,-1858.68,0.00020958,3]
[348998849,1736927442819,-3527.35,0.00020958,3]
[348998851,1736927442829,-1009.93,0.00020958,3]
[348998853,1736927442839,-500.0,0.00020958,3]
[348998855,1736927442849,-500.0,0.00020958,3]
[348998857,1736927442859,-500.0,0.00020958,3]
[348998859,1736927442869,-622.59,0.00020958,3]
[348998861,1736927442879,-500.0,0.00020958,3]
[348998863,1736927442889,-1668.78,0.00020958,2]
[348998865,1736927442899,-172.14,0.00020958,3]
[348998867,1736927442908,-569.57,0.00020958,3]
[348998869,1736927442918,-150.555,0.00020961,2]
[348998871,1736927442927,-536.0,0.00020961,2]
[348998873,1736927442937,-2070.0,0.00020961,2]
[348998875,1736927442947,-2311.0,0.00020961,2]
[348998877,1736927442957,-180.472,0.00020961,2]
[348998879,1736927442966,-395.0,0.00020961,2]
[348998881,1736927442976,-203.36095024,0.00021006,2]
[348998883,1736927442985,-156.257349,0.00021095,2]
[348998885,1736927442995,-151.0,0.00021095,2]
[348998887,1736927443004,-1858.68,0.00021095,3]
[348998889,1736927443013,-151.0,0.00021095,2]
[348998891,1736927443023,-3527.35,0.00021095,3]
[348998893,1736927443033,-1009.93,0.00021095,3]
[348998895,1736927443043,-637.110306,0.00021095,2]
[348998897,1736927443053,-637.110306,0.00021095,2]
[348998899,1736927443062,-230.32,0.00021095,3]
[348998901,1736927443072,-500.0,0.00021095,3]
[348998903,1736927443083,-500.0,0.00021095,3]
[348998905,1736927443094,-622.59,0.00021095,3]
[348998907,1736927443108,-500.0,0.00021095,3]
[348998909,1736927443118,-1668.78,0.00021095,2]
[348998911,1736927443129,-569.57,0.00021095,3]
[348998913,1736927443139,-9786.5,0.000211,2]
[348998915,1736927443150,-2042.82,0.000211,2]
[348998917,1736927443161,-200.1696439,0.0002115,2]
[348998919,1736927443171,-1858.68,0.00021232,3]
[348998921,1736927443183,-3527.35,0.00021232,3]
[348998923,1736927443193,-1009.93,0.00021232,3]
[348998925,1736927443202,-441.37,0.00021232,3]
[348998927,1736927443212,-500.0,0.00021232,3]
[348998929,1736927443222,-622.59,0.00021232,3]
[348998931,1736927443231,-500.0,0.00021232,3]
[348998933,1736927443241,-1668.78,0.00021232,2]
[348998935,1736927443251,-569.57,0.00021232,3]
[348998936,1736927443260,-151.0,0.00021369,2]
[348998938,1736927443270,-1858.68,0.00021369,3]
[348998940,1736927443280,-3527.35,0.00021369,3]
[348998942,1736927443288,-1009.93,0.00021369,3]
[348998944,1736927443299,-500.0,0.00021369,3]
[348998946,1736927443308,-622.59,0.00021369,3]
[348998948,1736927443317,-151.0,0.00021369,2]
[348998950,1736927443328,-151.0,0.00021369,2]
[348998952,1736927443337,-259.409545,0.00021369,2]
[348998954,1736927443348,-500.0,0.00021369,3]
[348998956,1736927443358,-151.0,0.00021369,2]
[348998958,1736927443367,-1668.78,0.00021369,2]
[348998960,1736927443377,-569.57,0.00021369,3]
[348998963,1736927443387,-500.0,0.00021397,2]
[348998965,1736927443396,-200.1696439,0.000214,2]
[348998966,1736927443406,-1858.68,0.00021506,3]
[348998968,1736927443416,-3527.35,0.00021506,3]
[348998970,1736927443426,-1009.93,0.00021506,3]
[348998973,1736927443436,-151.0,0.00021506,2]
[348998975,1736927443447,-500.0,0.00021506,3]
[348998977,1736927443456,-151.0,0.00021506,2]
[348998979,1736927443466,-622.59,0.00021506,3]
[348998981,1736927443476,-500.0,0.00021506,3]
[348998983,1736927443485,-1668.78,0.00021506,2]
[348998985,1736927443495,-569.57,0.00021506,3]
[348998987,1736927443504,-1858.68,0.00021643,3]
[348998988,1736927443513,-3527.35,0.00021643,3]
[348998990,1736927443523,-1009.93,0.00021643,3]
[348998992,1736927443533,-635.99,0.00021643,3]
[348998995,1736927443542,-622.59,0.00021643,3]
[348998997,1736927443552,-500.0,0.00021643,3]
[348998998,1736927443562,-1668.78,0.00021643,2]
[348999000,1736927443571,-569.57,0.00021643,3]
[348999002,1736927443582,-200.1696439,0.0002165,2]
[348999004,1736927443591,-158.2978413,0.00021753,2]
[348999006,1736927443600,-1858.68,0.0002178,3]
[348999008,1736927443610,-3527.35,0.0002178,3]
[348999010,1736927443620,-1009.93,0.0002178,3]
[348999012,1736927443630,-622.59,0.0002178,3]
[348999014,1736927443640,-500.0,0.0002178,3]
[348999016,1736927443650,-1668.78,0.0002178,2]
[348999018,1736927443659,-569.57,0.0002178,3]
[348999020,1736927443669,-248.37,0.0002185,2]
[348999022,1736927443678,-160.0,0.00021891,3]
[348999024,1736927443687,-2444.55,0.000219,2]
[348999026,1736927443697,-200.1696439,0.000219,2]
[348999028,1736927443706,-637.110306,0.000219,2]
[348999030,1736927443716,-637.110306,0.000219,2]
[348999032,1736927443725,-1858.68,0.00021917,3]
[348999034,1736927443735,-3527.35,0.00021917,3]
[348999036,1736927443744,-1009.93,0.00021917,3]
[348999038,1736927443756,-151.0,0.00021917,2]
[348999040,1736927443765,-151.0,0.00021917,2]
[348999042,1736927443775,-236.877402,0.00021917,2]
[348999044,1736927443785,-151.0,0.00021917,2]
[348999046,1736927443795,-622.59,0.00021917,3]
[348999048,1736927443806,-500.0,0.00021917,3]
[348999050,1736927443815,-1668.78,0.00021917,2]
[348999052,1736927443825,-569.57,0.00021917,3]
[348999054,1736927443835,-1858.68,0.00022054,3]
[348999056,1736927443844,-151.0,0.00022054,7]
[348999058,1736927443855,-3527.35,0.00022054,3]
[348999060,1736927443865,-1009.93,0.00022054,3]
[348999062,1736927443874,-622.59,0.00022054,3]
[348999064,1736927443883,-497.47,0.00022054,3]
[348999066,1736927443893,-1668.78,0.00022054,2]
[348999068,1736927443903,-569.57,0.00022054,3]
[348999070,1736927443912,-200.1696439,0.0002215,2]
[348999072,1736927443922,-1858.68,0.00022191,3]
[348999074,1736927443931,-3527.35,0.00022191,3]
[348999076,1736927443941,-1009.93,0.00022191,3]
[348999078,1736927443951,-622.59,0.00022191,3]
[348999080,1736927443960,-1668.78,0.00022191,2]
[348999082,1736927443970,-569.57,0.00022191,3]
[348999084,1736927443979,-1858.70442882,0.00022328,3]
[348999086,1736927443989,-3527.53999999,0.00022328,3]
[348999088,1736927443998,-1010.0,0.00022328,3]
[348999090,1736927444007,-622.78,0.00022328,3]
[348999093,1736927444018,-1668.78,0.00022328,2]
[348999094,1736927444027,-569.57,0.00022328,3]
[348999097,1736927444037,-500.0,0.00022356,2]
[348999098,1736927444046,-332.0,0.000224,10]
[348999100,1736927444056,-200.1696439,0.000224,2]
[348999103,1736927444066,-620.0,0.000224,2]
[348999105,1736927444077,-13019.96329399,0.00022458,2]
[348999106,1736927444086,-151.0,0.00022458,7]
[348999108,1736927444095,-151.0,0.00022458,7]
[348999110,1736927444106,-151.0,0.00022458,7]
[348999113,1736927444118,-1668.92,0.00022465,2]
[348999115,1736927444128,-569.61,0.00022465,3]
[348999124,1736927444219,-13019.96329399,0.00022534,2]
[348999127,1736927444230,-153.0,0.00022575,2]
[348999129,1736927444239,-153.0,0.00022575,2]
[348999130,1736927444248,-153.0,0.00022575,2]
[348999132,1736927444259,-153.0,0.00022575,2]
[348999134,1736927444269,-153.0,0.00022575,2]
[348999136,1736927444278,-157.0445543,0.00022575,2]
[348999138,1736927444288,-200.1696439,0.0002265,2]
[348999140,1736927444297,-1200.0,0.00022671,2]
[348999142,1736927444306,-151.0,0.00022686,7]
[348999144,1736927444316,-151.0,0.00022686,7]
[348999146,1736927444326,-9786.5,0.000227,2]
[348999148,1736927444335,-2042.82,0.000227,14]
[348999150,1736927444345,-637.110306,0.000227,7]
[348999152,1736927444355,-637.110306,0.000227,7]
[348999154,1736927444365,-587.0,0.00022776,2]
[348999156,1736927444374,-160.0,0.00022803,4]
[348999158,1736927444384,-153.0,0.00022849,2]
[348999160,1736927444393,-214.9766468,0.00022849,2]
[348999162,1736927444403,-306.0,0.00022849,2]
[348999164,1736927444412,-214.9766468,0.00022849,2]
[348999166,1736927444422,-154.1937264,0.00022849,2]
[348999168,1736927444431,-214.9766468,0.00022849,2]
[348999170,1736927444441,-214.9766468,0.00022849,2]
[348999172,1736927444451,-203.6913258,0.00022849,2]
[348999174,1736927444460,-200.1696439,0.000229,2]
[348999176,1736927444470,-179.44,0.00022934,2]
[348999178,1736927444479,-500.0,0.00022973,2]
[348999180,1736927444489,-500.0,0.00022973,2]
[348999182,1736927444499,-500.0,0.00022973,2]
[348999184,1736927444509,-188.98081648,0.00022999,2]
[348999185,1736927444519,-411969.61706518,0.00023,2]
[348999186,1736927444528,-1000.0,0.00023,23]
[348999187,1736927444537,-7438.69753278,0.00023,2]
[348999188,1736927444547,-5461.24,0.00023,14]
[348999190,1736927444556,-151.0,0.00023,7]
[348999192,1736927444565,-151.0,0.00023,7]
[348999194,1736927444575,-152.059088,0.00023,7]
[348999196,1736927444584,-150.0,0.00023,2]
[348999198,1736927444593,-156.257349,0.00023,7]
[348999200,1736927444602,-151.0,0.00023,7]
[348999202,1736927444611,-159.80289,0.00023,7]
[348999204,1736927444622,-637.110306,0.00023,7]
[348999206,1736927444631,-154.438056,0.00023,7]
[348999208,1736927444640,-637.110306,0.00023,7]
[348999210,1736927444650,-7438.69753278,0.00023,3]
[348999212,1736927444659,-151.0,0.00023,7]
[348999214,1736927444669,-151.0,0.00023,7]
[348999216,1736927444678,-151.0,0.00023,7]
[348999218,1736927444687,-151.0,0.00023,7]
[348999220,1736927444696,-151.0,0.00023,7]
[348999222,1736927444706,-200.0,0.00023,2]
[348999224,1736927444715,-151.0,0.00023107,7]
[348999226,1736927444724,-200.1696439,0.0002315,2]
[348999228,1736927444734,-168.0,0.00023251,2]
[348999230,1736927444745,-168.0,0.00023251,2]
[348999232,1736927444755,-168.0,0.00023251,2]
[348999234,1736927444767,-168.0,0.00023251,2]
[348999236,1736927444777,-168.0,0.00023251,2]
[348999238,1736927444787,-168.0,0.00023251,2]
[348999240,1736927444796,-168.0,0.00023251,2]
[348999242,1736927444808,-171.0,0.00023251,2]
[348999244,1736927444818,-2260.0,0.00023328,7]
[348999246,1736927444830,-2007.6010277,0.000234,2]
[348999248,1736927444839,-200.1696439,0.000234,2]
[348999250,1736927444849,-151.0,0.00023412,7]
[348999252,1736927444858,-794.46572101,0.00023437,2]
[348999254,1736927444868,-1000.0,0.00023447,2]
[348999256,1736927444877,-1000.0,0.00023458,2]
[348999258,1736927444887,-400.06026146,0.00023466,2]
[348999267,1736927444958,-434.81370448,0.00020273,3]
[348999269,1736927444970,-606.22629552,0.00020273,3]
[348999271,1736927444979,-599.93973854,0.00023466,2]
[348999273,1736927444988,-289148.66553249,0.000235,2]
[348999275,1736927444999,-2186.82608206,0.000235,2]
[348999438,1736927446607,-507.88847955,0.0002041,3]
[348999441,1736927446649,-500.0,0.00019178,2]
[348999442,1736927446659,-533.15152045,0.0002041,3]
[348999443,1736927446668,-1041.04,0.00020547,3]
[348999445,1736927446678,-1041.04,0.00020684,3]
[348999446,1736927446687,-564.91325132,0.00020821,3]
[348999449,1736927446703,-323.02234398,0.00019178,2]
[348999451,1736927446714,-176.97765602,0.00019178,2]
[348999452,1736927446723,-476.12674868,0.00020821,3]
[348999454,1736927446732,-1041.04,0.00020958,3]
[348999456,1736927446741,-203.36095024,0.00021648,2]
[348999458,1736927446750,-13465.69797665,0.000235,2]
[348999465,1736927446810,-1041.04,0.00021095,3]
[348999466,1736927446820,-1041.04,0.00021232,3]
[348999468,1736927446830,-18.91982,0.00021369,3]
[348999665,1736927561559,179.93854,0.00013973,2]
[348999675,1736928032665,160.0,0.0002251,120]
[348999682,1736928481566,170.941613,0.00013973,2]
[348999689,1736928636116,-211.05195539,0.00016975,2]
[348999690,1736928636127,-5372.8071553,0.00017419,2]
[348999691,1736928636139,-225.7732733,0.00017444,2]
[348999692,1736928636149,-1383.5612328,0.00017502,2]
[348999693,1736928636161,-523.4542409,0.00017527,2]
[348999694,1736928636172,-161.271296,0.00017596,2]
[348999695,1736928636183,-300.0,0.00017783,2]
[348999696,1736928636194,-1884.98339896,0.00017783,2]
[348999697,1736928636208,-4067.01660104,0.00017783,2]
[348999698,1736928636218,-1915.39129597,0.00017792,2]
[348999699,1736928636228,-644.06143211,0.00017792,2]
[348999700,1736928636239,-9333.6993565,0.00017841,2]
[348999702,1736928636249,-196.68648642,0.000188,2]
[348999705,1736928636260,-184.06980475,0.00019078,2]
[348999707,1736928636271,-151.0,0.00019166,2]
[348999709,1736928636281,-499.0,0.00019177,2]
[348999711,1736928636291,-500.0,0.00019177,2]
[348999713,1736928636301,-500.0,0.00019177,2]
[348999715,1736928636311,-500.0,0.00019177,2]
[348999717,1736928636322,-552.57800335,0.00019177,2]
[348999719,1736928636332,-500.0,0.00019177,2]
[348999721,1736928636342,-500.0,0.00019177,2]
[348999723,1736928636352,-500.0,0.00019177,2]
[348999726,1736928636364,-484.60640695,0.00019177,2]
[348999728,1736928636375,-470.44848947,0.00019177,2]
[348999730,1736928636384,-500.0,0.00019177,2]
[348999732,1736928636394,-500.0,0.00019177,2]
[348999734,1736928636404,-252.36851711,0.00019177,2]
[348999736,1736928636414,-500.0,0.00019177,2]
[348999739,1736928636425,-599.34246145,0.00019178,2]
[348999742,1736928636434,-500.0,0.00019178,2]
[348999745,1736928636445,-504.89239055,0.00019178,2]
[348999748,1736928636455,-500.0,0.00019178,2]
[348999750,1736928636465,-500.0,0.00019178,2]
[348999752,1736928636475,-500.0,0.00019178,2]
[348999755,1736928636486,-500.0,0.00019178,2]
[348999757,1736928636496,-500.0,0.00019178,2]
[348999759,1736928636508,-112.05836431,0.00019178,2]
[348999761,1736928636522,-387.94163569,0.00019178,2]
[348999763,1736928636532,-500.0,0.00019178,2]
[348999766,1736928636542,-506.7977865,0.00019178,2]
[348999768,1736928636552,-505.53382475,0.00019178,2]
[348999770,1736928636561,-212.41446255,0.00019178,2]
[348999772,1736928636571,-500.0,0.00019178,2]
[348999774,1736928636581,-500.0,0.00019178,2]
[348999775,1736928636590,-500.0,0.00019178,2]
[348999776,1736928636600,-500.0,0.00019178,2]
[348999777,1736928636611,-500.0,0.00019178,2]
[348999778,1736928636622,-500.0,0.00019178,2]
[348999779,1736928636636,-500.0,0.00019178,2]
[348999780,1736928636791,-500.0,0.00019178,2]
[348999781,1736928636800,-500.0,0.00019178,2]
[348999782,1736928636810,-582.06,0.00019178,2]
[348999783,1736928636819,-500.0,0.00019178,2]
[348999784,1736928636829,-500.0,0.00019178,2]
[348999785,1736928636838,-500.0,0.00019178,2]
[348999786,1736928636847,-505.47328101,0.00019178,2]
[348999787,1736928636857,-500.0,0.00019178,2]
[348999788,1736928636868,-500.0,0.00019178,2]
[348999789,1736928636877,-500.0,0.00019178,2]
[348999790,1736928636887,-500.0,0.00019178,2]
[348999791,1736928636901,-500.0,0.00019178,2]
[348999792,1736928636910,-582.00240901,0.00019178,2]
[348999793,1736928636920,-361.31135746,0.00019178,2]
[348999794,1736928636929,-500.0,0.00019178,2]
[348999795,1736928636939,-111.18374286,0.00019178,2]
[348999796,1736928636951,-388.81625714,0.00019178,2]
[348999797,1736928636960,-333.78311286,0.00019178,2]
[348999798,1736928636977,-166.21688714,0.00019178,2]
[348999799,1736928636989,-505.55967951,0.00019178,2]
[348999800,1736928636998,-500.0,0.00019178,2]
[348999801,1736928637010,-500.0,0.00019178,2]
[348999802,1736928637019,-500.0,0.00019178,2]
[348999803,1736928637029,-500.0,0.00019178,2]
[348999804,1736928637038,-500.0,0.00019178,2]
[348999805,1736928637048,-500.0,0.00019178,2]
[348999806,1736928637057,-500.0,0.00019178,2]
[348999807,1736928637067,-500.0,0.00019178,2]
[348999808,1736928637077,-500.0,0.00019178,2]
[348999809,1736928637086,-500.0,0.00019178,2]
[348999810,1736928637096,-500.0,0.00019178,2]
[348999811,1736928637105,-500.0,0.00019178,2]
[348999812,1736928637115,-500.0,0.00019178,2]
[348999813,1736928637125,-453.59203299,0.00019178,2]
[348999814,1736928637135,-500.0,0.00019178,2]
[348999815,1736928637145,-500.0,0.00019178,2]
[348999816,1736928637155,-504.27730463,0.00019178,2]
[348999817,1736928637165,-500.0,0.00019178,2]
[348999818,1736928637175,-500.0,0.00019178,2]
[348999819,1736928637184,-500.0,0.00019178,2]
[348999820,1736928637194,-500.0,0.00019178,2]
[348999821,1736928637204,-507.2031334,0.00019178,2]
[348999822,1736928637214,-500.0,0.00019178,2]
[348999823,1736928637225,-500.0,0.00019178,2]
[348999824,1736928637235,-507.62340577,0.00019178,2]
[348999825,1736928637245,-500.0,0.00019178,2]
[348999826,1736928637257,-500.0,0.00019178,2]
[348999827,1736928637269,-500.0,0.00019178,2]
[348999828,1736928637278,-500.0,0.00019178,2]
[348999829,1736928637288,-500.0,0.00019178,2]
[348999830,1736928637298,-500.0,0.00019178,2]
[348999831,1736928637308,-500.0,0.00019178,2]
[348999832,1736928637317,-500.0,0.00019178,2]
[348999833,1736928637327,-500.0,0.00019178,2]
[348999834,1736928637338,-500.0,0.00019178,2]
[348999835,1736928637348,-500.0,0.00019178,2]
[348999836,1736928637358,-500.0,0.00019178,2]
[348999837,1736928637367,-511.33627792,0.00019178,2]
[348999838,1736928637377,-602.1233549,0.00019178,2]
[348999839,1736928637386,-500.0,0.00019178,2]
[348999840,1736928637396,-511.74899883,0.00019178,2]
[348999842,1736928637406,-500.0,0.00019178,2]
[348999844,1736928637416,-192.93908144,0.00019178,2]
[348999846,1736928637426,-505.69140738,0.00019178,2]
[348999847,1736928637435,-500.0,0.00019178,2]
[348999848,1736928637445,-500.0,0.00019178,2]